[Event "AUT-ch U16 Boys 2022"]
[Site "Sankt Veit an der Glan"]
[Date "2022.04.10"]
[Round "1"]
[White "Borrmann, Laurenz"]
[Black "Gloessl, Sota Alexander"]
[Result "1-0"]
[ECO "B03"]
[WhiteElo "2232"]
[BlackElo "1887"]
[Annotator "RC"]
[PlyCount "49"]
[EventDate "2022.04.11"]
[EventType "swiss"]
[EventCountry "AUT"]
[SourceTitle "playchess.com"]
[Source "ChessBase"]
[SourceQuality "1"]
[TimeControl "5400+30"]

1. e4 {[%emt 0:00:07]} Nf6 {[%emt 0:00:31]} 2. e5 {[%emt 0:00:29]} Nd5 {[%emt 0:00:05]} 3. d4 {[%emt 0:00:20]} d6 {[%emt 0:00:07]} 4. c4 {[%emt 0:00:09]} Nb6 {[%emt 0:00:05]} 5. f4 {[%emt 0:00:10]} dxe5 {[%emt 0:00:11]} 6. fxe5 {[%emt 0:00:13]} Nc6 {[%emt 0:00:05]} 7. Be3 {[%emt 0:00:08]} Bf5 {[%emt 0:00:05]} 8. Nc3 {[%emt 0:00:36]} e6 {[%emt 0:00:07]} 9. Nf3 {[%emt 0:00:36]} Bb4 {[%emt 0:00:06]} 10. Be2 {[%emt 0:00:31]} Na5 {[%emt 0:00:07]} 11. c5 {[%emt 0:01:17]} Nd5 {[%emt 0:00:10]} 12. Bd2 {[%emt 0:00:31]} Bxc3 {[%emt 0:00:19]} 13. bxc3 {[%emt 0:00:10]} Ne7 {[%emt 0:00:52]} 14. O-O {[%emt 0:05:56]} h6 {[%emt 0:04:15]} 15. c4 {[%emt 0:31:10]} Nac6 {[%emt 0:17:26]} 16. Be3 {[%emt 0:03:42]} Qd7 {[%emt 0:20:11]} 17. Qb3 {[%emt 0:10:54]} O-O {[%emt 0:06:04]} 18. Rad1 {[%emt 0:02:02]} Be4 {[%emt 0:02:43]} 19. Bf2 {[%emt 0:02:34]} Rfd8 {[%emt 0:07:22]} 20. Kh1 {[%emt 0:08:21]} Nf5 {[%emt 0:02:54]} 21. Qc3 {[%emt 0:01:59]} g5 {[%emt 0:13:51]} 22. Nd2 {[%emt 0:04:27]} Ncxd4 {[%emt 0:00:53]} 23. Nxe4 {[%emt 0:01:00]} Nxe2 {[%emt 0:00:05]} 24. Qc2 {[%emt 0:02:53]} Ned4 {[%emt 0:00:35]} 25. Rxd4 {[%emt 0:02:10]} 1-0

[Event "AUT-ch U16 Boys 2022"]
[Site "Sankt Veit an der Glan"]
[Date "2022.04.10"]
[Round "1"]
[White "Lerch, Johannes"]
[Black "Leitner, Thomas"]
[Result "1-0"]
[ECO "B40"]
[WhiteElo "2229"]
[BlackElo "1734"]
[Annotator "RC"]
[PlyCount "45"]
[EventDate "2022.04.11"]
[EventType "swiss"]
[EventCountry "AUT"]
[SourceTitle "playchess.com"]
[Source "ChessBase"]
[SourceQuality "1"]
[TimeControl "5400+30"]

1. e4 {[%emt 0:00:02]} c5 {[%emt 0:00:08]} 2. Nf3 {[%emt 0:00:05]} e6 {[%emt 0:00:09]} 3. b3 {[%emt 0:00:04]} b6 {[%emt 0:00:16]} 4. Bb2 {[%emt 0:00:07]} Bb7 {[%emt 0:00:10]} 5. Nc3 {[%emt 0:00:05]} Nc6 {[%emt 0:00:27]} 6. d4 {[%emt 0:00:58]} cxd4 {[%emt 0:02:07]} 7. Nxd4 {[%emt 0:00:06]} Nxd4 {[%emt 0:00:35]} 8. Qxd4 {[%emt 0:00:10]} Nf6 {[%emt 0:00:27]} 9. f3 {[%emt 0:06:05]} Bc5 {[%emt 0:02:42]} 10. Qd2 {[%emt 0:02:53]} O-O {[%emt 0:03:02]} 11. e5 {[%emt 0:13:04]} Nd5 {[%emt 0:01:58]} 12. Nxd5 {[%emt 0:18:53]} Bxd5 {[%emt 0:00:52]} 13. O-O-O {[%emt 0:03:57]} Qc7 {[%emt 0:04:22]} 14. Bd3 {[%emt 0:02:45]} a5 {[%emt 0:02:38]} 15. Kb1 {[%emt 0:07:21]} Rfc8 {[%emt 0:06:02]} 16. c4 {[%emt 0:08:36]} Bc6 {[%emt 0:03:20]} 17. a4 {[%emt 0:00:23]} Rd8 {[%emt 0:06:28]} 18. Bc2 {[%emt 0:03:32]} Bf8 {[%emt 0:02:35]} 19. h4 {[%emt 0:02:59]} d5 {[%emt 0:05:31]} 20. exd6 {[%emt 0:01:30]} Rxd6 {[%emt 0:00:39]} 21. Qe3 {[%emt 0:01:34]} Rxd1+ {[%emt 0:09:23]} 22. Rxd1 {[%emt 0:00:14]} Be8 {[%emt 0:02:34]} 23. Qe4 {[%emt 0:00:27]} 1-0

[Event "AUT-ch U16 Boys 2022"]
[Site "Sankt Veit an der Glan"]
[Date "2022.04.10"]
[Round "1"]
[White "Wagner, Leopold Franziskus"]
[Black "Soldo, Dario"]
[Result "1-0"]
[ECO "D02"]
[WhiteElo "2061"]
[BlackElo "1547"]
[Annotator "NA RC"]
[PlyCount "117"]
[EventDate "2022.04.11"]
[EventType "swiss"]
[EventCountry "AUT"]
[SourceTitle "playchess.com"]
[Source "ChessBase"]
[SourceQuality "1"]
[TimeControl "5400+30"]

1. d4 {[%emt 0:00:06]} Nf6 {[%emt 0:00:05]} 2. Nf3 {[%emt 0:00:21]} c5 {[%emt 0:00:07]} 3. c3 {[%emt 0:01:25]} e6 {[%emt 0:00:18]} 4. g3 {[%emt 0:05:10]} d5 {[%emt 0:00:14]} 5. Bg2 {[%emt 0:00:14]} Nc6 {[%emt 0:00:11]} 6. O-O {[%emt 0:00:20]} Be7 {[%emt 0:00:39]} 7. e3 {[%emt 0:06:34]} O-O {[%emt 0:00:13]} 8. Nbd2 {[%emt 0:00:26]} c4 {[%emt 0:03:26]} 9. Re1 {[%emt 0:00:20]} b5 {[%emt 0:02:12]} 10. e4 {[%emt 0:00:50]} Re8 {[%emt 0:03:25]} 11. Qc2 {[%emt 0:02:44]} h6 {[%emt 0:00:35]} 12. e5 {[%emt 0:15:18]} Nd7 {[%emt 0:00:58]} 13. g4 {[%emt 0:03:04]} Nf8 {[%emt 0:03:54]} 14. Nf1 {[%emt 0:01:10]} Nh7 {[%emt 0:05:42]} 15. Be3 {[%emt 0:01:10]} Ng5 {[%emt 0:00:46]} 16. N3d2 {[%emt 0:00:12]} f5 {[%emt 0:09:03]} 17. gxf5 {[%emt 0:05:40]} exf5 {[%emt 0:00:07]} 18. a4 {[%emt 0:00:13]} b4 {[%emt 0:00:22]} 19. Bxg5 {[%emt 0:01:45]} Bxg5 {[%emt 0:01:50]} 20. Nxc4 {[%emt 0:01:30]} Be6 {[%emt 0:01:22]} 21. Nd6 {[%emt 0:03:13]} Rf8 {[%emt 0:00:24]} 22. Nb7 {[%emt 0:00:36]} Qe7 {[%emt 0:00:45]} 23. Nc5 {[%emt 0:00:23]} f4 {[%emt 0:02:30]} 24. Qg6 {[%emt 0:01:58]} Nd8 {[%emt 0:07:02]} 25. Nxe6 {[%emt 0:00:18]} Nxe6 {[%emt 0:01:18]} 26. Bxd5 {[%emt 0:00:03]} Rae8 {[%emt 0:00:28]} 27. Qxe6+ {[%emt 0:00:20]} Qxe6 {[%emt 0:00:08]} 28. Bxe6+ {[%emt 0:00:07]} Rxe6 {[%emt 0:00:02]} 29. f3 {[%emt 0:00:24]} Bh4 {[%emt 0:00:16]} 30. Re2 {[%emt 0:00:26]} bxc3 {[%emt 0:00:28]} 31. bxc3 {[%emt 0:01:47]} Rc6 {[%emt 0:00:31]} 32. Rc2 {[%emt 0:01:15]} Rd8 {[%emt 0:00:36]} 33. Rac1 {[%emt 0:00:42]} Be7 {[%emt 0:00:14]} 34. Nd2 {[%emt 0:00:59]} Ba3 {[%emt 0:00:31]} 35. Ra1 {[%emt 0:21:09]} Bb4 {[%emt 0:00:19]} 36. Nb3 {[%emt 0:09:08]} Rxc3 {[%emt 0:02:21]} 37. Rxc3 {[%emt 0:00:09]} Bxc3 {[%emt 0:00:01]} 38. Rd1 {[%emt 0:00:01]} Kf7 {[%emt 0:00:24]} 39. Kf1 {[%emt 0:02:37]} Ke6 {[%emt 0:03:20]} 40. Ke2 {[%emt 0:00:49]} Bb4 {[%emt 0:00:45]} 41. Kd3 {[%emt 0:00:42]} Rc8 {[%emt 0:03:26]} 42. Rc1 {[%emt 0:01:02]} Rxc1 {[%emt 0:00:55]} 43. Nxc1 {[%emt 0:00:01]} Kd5 {[%emt 0:00:08]} 44. h4 {[%emt 0:04:00]} g5 {[%emt 0:00:47]} 45. hxg5 {[%emt 0:00:40]} hxg5 {[%emt 0:00:02]} 46. Na2 {[%emt 0:00:23]} Be1 {[%emt 0:01:29]} 47. Nc3+ {[%emt 0:00:29]} Ke6 {[%emt 0:01:32]} 48. Ne4 {[%emt 0:00:12]} Kf5 {[%emt 0:00:18]} 49. Nf6 {[%emt 0:00:05]} Bb4 {[%emt 0:02:09]} 50. Kc4 {[%emt 0:00:23]} Be7 {[%emt 0:00:16]} 51. Ng4 {[%emt 0:00:03]} Ke6 {[%emt 0:02:26]} 52. d5+ {[%emt 0:00:14]} Kd7 {[%emt 0:00:44]} 53. d6 {[%emt 0:00:48]} Bd8 {[%emt 0:00:07]} 54. Kd5 {[%emt 0:00:04]} Bb6 {[%emt 0:01:50]} 55. e6+ {[%emt 0:00:04]} Ke8 {[%emt 0:00:48]} 56. Nf6+ {[%emt 0:00:12]} Kf8 {[%emt 0:00:11]} 57. e7+ {[%emt 0:00:06]} Kf7 {[%emt 0:00:09]} 58. e8=Q+ {[%emt 0:00:05]} Kxf6 {[%emt 0:00:21]} 59. d7 {[%emt 0:00:23]} 1-0

[Event "AUT-ch U16 Boys 2022"]
[Site "Sankt Veit an der Glan"]
[Date "2022.04.10"]
[Round "1"]
[White "Miazhynski, Michael"]
[Black "Schilcher, Elias"]
[Result "1-0"]
[ECO "C54"]
[WhiteElo "2047"]
[BlackElo "1445"]
[Annotator "NA RC"]
[PlyCount "71"]
[EventDate "2022.04.11"]
[EventType "swiss"]
[EventCountry "AUT"]
[SourceTitle "playchess.com"]
[Source "ChessBase"]
[SourceQuality "1"]
[TimeControl "5400+30"]

1. e4 {[%emt 0:00:02]} e5 {[%emt 0:00:07]} 2. Nf3 {[%emt 0:00:03]} Nc6 {[%emt 0:00:07]} 3. Bc4 {[%emt 0:00:04]} Bc5 {[%emt 0:00:20]} 4. c3 {[%emt 0:00:07]} Nf6 {[%emt 0:00:21]} 5. d3 {[%emt 0:00:05]} h6 {[%emt 0:01:38]} 6. O-O {[%emt 0:01:20]} d6 {[%emt 0:01:09]} 7. Nbd2 {[%emt 0:00:19]} Bg4 {[%emt 0:07:00]} 8. Re1 {[%emt 0:00:34]} Qd7 {[%emt 0:03:37]} 9. Bb3 {[%emt 0:01:19]} a6 {[%emt 0:05:55]} 10. Nf1 {[%emt 0:01:10]} O-O-O {[%emt 0:06:00]} 11. Ba4 {[%emt 0:14:22]} Rhf8 {[%emt 0:10:49]} 12. b4 {[%emt 0:02:08]} Ba7 {[%emt 0:11:37]} 13. b5 {[%emt 0:07:00]} Bxf3 {[%emt 0:06:20]} 14. bxc6 {[%emt 0:00:54]} Qxc6 {[%emt 0:04:37]} 15. gxf3 {[%emt 0:00:41]} Qxc3 {[%emt 0:02:03]} 16. Rb1 {[%emt 0:05:52]} Bd4 {[%emt 0:05:18]} 17. Qb3 {[%emt 0:04:51]} b5 {[%emt 0:02:43]} 18. Bb2 {[%emt 0:05:05]} Qxb3 {[%emt 0:11:06]} 19. Bxb3 {[%emt 0:00:14]} Bxb2 {[%emt 0:00:56]} 20. Rxb2 {[%emt 0:00:06]} Nh5 {[%emt 0:00:22]} 21. Ne3 {[%emt 0:00:54]} Nf4 {[%emt 0:00:42]} 22. Rd2 {[%emt 0:01:33]} g6 {[%emt 0:03:46]} 23. Nd5 {[%emt 0:02:41]} Nxd5 {[%emt 0:01:40]} 24. exd5 {[%emt 0:03:06]} g5 {[%emt 0:02:13]} 25. d4 {[%emt 0:00:58]} f6 {[%emt 0:00:33]} 26. a4 {[%emt 0:01:03]} Kd7 {[%emt 0:01:13]} 27. Bc2 {[%emt 0:20:46]} Rb8 {[%emt 0:01:39]} 28. axb5 {[%emt 0:03:22]} axb5 {[%emt 0:01:35]} 29. Bf5+ {[%emt 0:00:08]} Kd8 {[%emt 0:01:40]} 30. Rb1 {[%emt 0:00:08]} b4 {[%emt 0:00:54]} 31. Rdb2 {[%emt 0:00:45]} Rb5 {[%emt 0:00:28]} 32. Rxb4 {[%emt 0:03:37]} Rxd5 {[%emt 0:00:33]} 33. Rc4 {[%emt 0:00:13]} c5 {[%emt 0:01:28]} 34. Ra4 {[%emt 0:00:15]} Kc7 {[%emt 0:01:49]} 35. Ra7+ {[%emt 0:00:04]} Kc6 {[%emt 0:00:15]} 36. Bd7# {[%emt 0:00:05]} 1-0

[Event "AUT-ch U16 Boys 2022"]
[Site "Sankt Veit an der Glan"]
[Date "2022.04.10"]
[Round "1"]
[White "Hersel, Richard"]
[Black "Marakovits, Nico"]
[Result "0-1"]
[ECO "A03"]
[WhiteElo "1832"]
[BlackElo "2249"]
[Annotator "RC"]
[PlyCount "116"]
[EventDate "2022.04.11"]
[EventType "swiss"]
[EventCountry "AUT"]
[SourceTitle "playchess.com"]
[Source "ChessBase"]
[SourceQuality "1"]
[TimeControl "5400+30"]

1. f4 {[%emt 0:00:02]} d5 {[%emt 0:00:15]} 2. e3 {[%emt 0:00:14]} g6 {[%emt 0:00:15]} 3. Nf3 {[%emt 0:00:18]} Bg7 {[%emt 0:00:10]} 4. d4 {[%emt 0:00:17]} Nf6 {[%emt 0:00:35]} 5. Bd3 {[%emt 0:01:02]} Bf5 {[%emt 0:02:54]} 6. Bxf5 {[%emt 0:03:36]} gxf5 {[%emt 0:00:17]} 7. Qd3 {[%emt 0:09:26]} Qc8 {[%emt 0:03:08]} 8. O-O {[%emt 0:02:52]} O-O {[%emt 0:02:03]} 9. Bd2 {[%emt 0:03:58]} Ne4 {[%emt 0:04:34]} 10. c3 {[%emt 0:04:00]} c5 {[%emt 0:03:11]} 11. Be1 {[%emt 0:05:07]} e6 {[%emt 0:07:12]} 12. Bh4 {[%emt 0:09:40]} Qc7 {[%emt 0:00:49]} 13. Nfd2 {[%emt 0:06:38]} Nc6 {[%emt 0:06:06]} 14. Nxe4 {[%emt 0:04:21]} fxe4 {[%emt 0:00:37]} 15. Qe2 {[%emt 0:00:41]} f5 {[%emt 0:03:08]} 16. Kh1 {[%emt 0:12:52]} Rac8 {[%emt 0:04:33]} 17. Nd2 {[%emt 0:10:14]} cxd4 {[%emt 0:03:46]} 18. exd4 {[%emt 0:00:15]} Kh8 {[%emt 0:02:23]} 19. Rf2 {[%emt 0:04:17]} Bh6 {[%emt 0:02:45]} 20. Raf1 {[%emt 0:05:48]} Ne7 {[%emt 0:06:01]} 21. Bxe7 {[%emt 0:00:19]} Qxe7 {[%emt 0:00:05]} 22. Nb3 {[%emt 0:03:14]} Rg8 {[%emt 0:02:27]} 23. Nc5 {[%emt 0:01:44]} b6 {[%emt 0:00:47]} 24. Nb3 {[%emt 0:01:48]} Qh4 {[%emt 0:00:52]} 25. Qe3 {[%emt 0:01:56]} Rg4 {[%emt 0:00:57]} 26. g3 {[%emt 0:04:53]} Qh3 {[%emt 0:01:35]} 27. Rg2 {[%emt 0:01:04]} Bf8 {[%emt 0:01:19]} 28. Rff2 {[%emt 0:01:57]} Bd6 {[%emt 0:00:54]} 29. Nc1 {[%emt 0:00:31]} Qh6 {[%emt 0:01:12]} 30. Qe1 {[%emt 0:00:54]} Rcg8 {[%emt 0:01:02]} 31. Ne2 {[%emt 0:00:18]} Qg7 {[%emt 0:03:39]} 32. Qd1 {[%emt 0:00:50]} Qd7 {[%emt 0:01:56]} 33. Qb3 {[%emt 0:00:28]} Qc6 {[%emt 0:00:47]} 34. Rg1 {[%emt 0:00:25]} b5 {[%emt 0:01:21]} 35. a3 {[%emt 0:00:13]} a5 {[%emt 0:00:14]} 36. Ra1 {[%emt 0:00:51]} Rb8 {[%emt 0:00:37]} 37. Qd1 {[%emt 0:01:06]} Rg7 {[%emt 0:01:17]} 38. b4 {[%emt 0:00:46]} Ra7 {[%emt 0:00:44]} 39. Qb3 {[%emt 0:00:29]} axb4 {[%emt 0:02:29]} 40. cxb4 {[%emt 0:00:02]} Qc4 {[%emt 0:00:34]} 41. Qb2 {[%emt 0:00:52]} Qd3 {[%emt 0:01:26]} 42. Nc1 {[%emt 0:00:33]} Qd1+ {[%emt 0:06:43]} 43. Kg2 {[%emt 0:00:05]} Qg4 {[%emt 0:01:46]} 44. Nb3 {[%emt 0:00:55]} Qg7 {[%emt 0:00:53]} 45. Nc5 {[%emt 0:00:38]} Bxc5 {[%emt 0:00:27]} 46. dxc5 {[%emt 0:00:28]} d4 {[%emt 0:02:07]} 47. Rd2 {[%emt 0:00:11]} Rd8 {[%emt 0:01:10]} 48. Rad1 {[%emt 0:00:29]} d3 {[%emt 0:00:14]} 49. Qxg7+ {[%emt 0:00:03]} Kxg7 {[%emt 0:00:06]} 50. c6 {[%emt 0:01:17]} Rxa3 {[%emt 0:00:56]} 51. Kf2 {[%emt 0:00:31]} Rc3 {[%emt 0:00:38]} 52. Ra1 {[%emt 0:00:24]} Rxc6 {[%emt 0:00:40]} 53. g4 {[%emt 0:00:05]} Rc2 {[%emt 0:00:27]} 54. Ke3 {[%emt 0:00:19]} Rdc8 {[%emt 0:01:15]} 55. gxf5 {[%emt 0:00:49]} exf5 {[%emt 0:00:18]} 56. Ra5 {[%emt 0:00:45]} Rxd2 {[%emt 0:00:14]} 57. Kxd2 {[%emt 0:00:01]} Rc2+ {[%emt 0:00:07]} 58. Kd1 {[%emt 0:00:10]} e3 {[%emt 0:00:14]} 0-1

[Event "AUT-ch U16 Boys 2022"]
[Site "Sankt Veit an der Glan"]
[Date "2022.04.10"]
[Round "1"]
[White "Stadlinger, Lukas"]
[Black "Gschiel, Alexander"]
[Result "0-1"]
[ECO "A03"]
[WhiteElo "1718"]
[BlackElo "2109"]
[Annotator "NA RC"]
[PlyCount "44"]
[EventDate "2022.04.11"]
[EventType "swiss"]
[EventCountry "AUT"]
[SourceTitle "playchess.com"]
[Source "ChessBase"]
[SourceQuality "1"]
[TimeControl "5400+30"]

1. b3 {[%emt 0:00:13]} d5 {[%emt 0:00:28]} 2. Bb2 {[%emt 0:00:27]} Nf6 {[%emt 0:00:26]} 3. e3 {[%emt 0:00:41]} e6 {[%emt 0:00:43]} 4. f4 {[%emt 0:02:59]} b6 {[%emt 0:01:19]} 5. Nf3 {[%emt 0:01:00]} Bb7 {[%emt 0:01:54]} 6. Be2 {[%emt 0:01:28]} Bd6 {[%emt 0:02:29]} 7. O-O {[%emt 0:02:10]} O-O {[%emt 0:00:58]} 8. d3 {[%emt 0:06:46]} c5 {[%emt 0:02:42]} 9. Ne5 {[%emt 0:03:23]} Nfd7 {[%emt 0:04:14]} 10. Nd2 {[%emt 0:05:07]} Qc7 {[%emt 0:07:03]} 11. Ndf3 {[%emt 0:05:07]} f6 {[%emt 0:03:26]} 12. Nxd7 {[%emt 0:07:41]} Nxd7 {[%emt 0:01:32]} 13. d4 {[%emt 0:13:26]} Rae8 {[%emt 0:05:19]} 14. Qd2 {[%emt 0:05:21]} Re7 {[%emt 0:05:36]} 15. g3 {[%emt 0:04:37]} e5 {[%emt 0:07:09]} 16. Rf2 {[%emt 0:06:40]} cxd4 {[%emt 0:00:49]} 17. fxe5 {[%emt 0:18:44]} dxe3 {[%emt 0:01:47]} 18. Qxe3 {[%emt 0:03:18]} fxe5 {[%emt 0:00:20]} 19. Qg5 {[%emt 0:01:45]} Qxc2 {[%emt 0:02:35]} 20. Bc1 {[%emt 0:01:43]} Qc3 {[%emt 0:02:06]} 21. Rb1 {[%emt 0:00:51]} h6 {[%emt 0:02:36]} 22. Qh4 {[%emt 0:00:56]} Qb4 {[%emt 0:01:25]} 0-1

[Event "AUT-ch U16 Boys 2022"]
[Site "Sankt Veit an der Glan"]
[Date "2022.04.10"]
[Round "1"]
[White "Giselbrecht, Jerrik"]
[Black "Hofstadler, Mario"]
[Result "0-1"]
[ECO "B13"]
[WhiteElo "1707"]
[BlackElo "2090"]
[Annotator "NA RC"]
[PlyCount "40"]
[EventDate "2022.04.11"]
[EventType "swiss"]
[EventCountry "AUT"]
[SourceTitle "playchess.com"]
[Source "ChessBase"]
[SourceQuality "1"]
[TimeControl "5400+30"]

1. e4 {[%emt 0:00:09]} c6 {[%emt 0:00:36]} 2. d4 {[%emt 0:00:29]} d5 {[%emt 0:00:17]} 3. exd5 {[%emt 0:00:39]} cxd5 {[%emt 0:00:08]} 4. Bd3 {[%emt 0:00:46]} Nc6 {[%emt 0:00:46]} 5. c3 {[%emt 0:01:45]} Nf6 {[%emt 0:00:36]} 6. Bf4 {[%emt 0:01:17]} Bg4 {[%emt 0:03:21]} 7. Qb3 {[%emt 0:03:06]} Qc8 {[%emt 0:09:53]} 8. Nd2 {[%emt 0:03:54]} e6 {[%emt 0:00:43]} 9. Ngf3 {[%emt 0:03:12]} Be7 {[%emt 0:00:54]} 10. O-O {[%emt 0:03:20]} O-O {[%emt 0:00:45]} 11. Rfe1 {[%emt 0:03:55]} Bh5 {[%emt 0:02:33]} 12. h3 {[%emt 0:05:34]} Re8 {[%emt 0:04:58]} 13. Re3 {[%emt 0:07:28]} Bg6 {[%emt 0:05:03]} 14. Bxg6 {[%emt 0:08:17]} hxg6 {[%emt 0:00:24]} 15. Bh2 {[%emt 0:05:47]} a6 {[%emt 0:05:07]} 16. a4 {[%emt 0:02:50]} Nd7 {[%emt 0:08:49]} 17. Ne1 {[%emt 0:10:24]} Na5 {[%emt 0:07:24]} 18. Qc2 {[%emt 0:06:38]} Bg5 {[%emt 0:09:28]} 19. f4 {[%emt 0:03:13]} Bf6 {[%emt 0:01:31]} 20. Nd3 {[%emt 0:06:12]} Bxd4 {[%emt 0:01:29]} 0-1

[Event "AUT-ch U16 Boys 2022"]
[Site "Sankt Veit an der Glan"]
[Date "2022.04.10"]
[Round "1"]
[White "Elsaesser, Daniel"]
[Black "Kienboeck, Benjamin"]
[Result "0-1"]
[ECO "B11"]
[WhiteElo "1571"]
[BlackElo "1900"]
[Annotator "NA RC"]
[PlyCount "80"]
[EventDate "2022.04.11"]
[EventType "swiss"]
[EventCountry "AUT"]
[SourceTitle "playchess.com"]
[Source "ChessBase"]
[SourceQuality "1"]
[TimeControl "5400+30"]

1. e4 {[%emt 0:00:03]} c6 {[%emt 0:00:05]} 2. Nc3 {[%emt 0:00:05]} d5 {[%emt 0:00:07]} 3. Nf3 {[%emt 0:00:05]} dxe4 {[%emt 0:00:06]} 4. Nxe4 {[%emt 0:00:09]} Nf6 {[%emt 0:00:12]} 5. Qe2 {[%emt 0:00:11]} Nxe4 {[%emt 0:00:40]} 6. Qxe4 {[%emt 0:00:08]} Be6 {[%emt 0:00:42]} 7. Bc4 {[%emt 0:05:10]} Bd5 {[%emt 0:02:59]} 8. Qe2 {[%emt 0:00:10]} e6 {[%emt 0:01:44]} 9. Bxd5 {[%emt 0:01:05]} cxd5 {[%emt 0:01:03]} 10. d4 {[%emt 0:00:19]} Bd6 {[%emt 0:04:10]} 11. O-O {[%emt 0:01:09]} O-O {[%emt 0:00:52]} 12. c3 {[%emt 0:00:57]} Nc6 {[%emt 0:05:17]} 13. Ng5 {[%emt 0:02:35]} h6 {[%emt 0:06:48]} 14. Nh3 {[%emt 0:00:46]} Qc7 {[%emt 0:02:55]} 15. f4 {[%emt 0:03:47]} Rab8 {[%emt 0:01:34]} 16. Rf3 {[%emt 0:05:24]} b5 {[%emt 0:02:43]} 17. b4 {[%emt 0:03:32]} a5 {[%emt 0:04:52]} 18. a3 {[%emt 0:07:55]} axb4 {[%emt 0:02:39]} 19. axb4 {[%emt 0:02:24]} Bxb4 {[%emt 0:00:59]} 20. Bd2 {[%emt 0:19:55]} Bd6 {[%emt 0:00:42]} 21. Rg3 {[%emt 0:01:01]} Ne7 {[%emt 0:00:26]} 22. Rb1 {[%emt 0:01:21]} Nf5 {[%emt 0:02:00]} 23. Rd3 {[%emt 0:03:15]} b4 {[%emt 0:03:44]} 24. cxb4 {[%emt 0:02:34]} Qa7 {[%emt 0:01:08]} 25. Bc3 {[%emt 0:00:55]} Rfc8 {[%emt 0:00:33]} 26. Qd2 {[%emt 0:00:39]} Rc4 {[%emt 0:01:49]} 27. g4 {[%emt 0:02:30]} Ne7 {[%emt 0:01:34]} 28. Kg2 {[%emt 0:02:16]} Qc7 {[%emt 0:01:21]} 29. Kf3 {[%emt 0:01:33]} Ng6 {[%emt 0:02:09]} 30. Rb2 {[%emt 0:02:56]} Nxf4 {[%emt 0:02:22]} 31. Nxf4 {[%emt 0:01:46]} Bxf4 {[%emt 0:00:45]} 32. Qxf4 {[%emt 0:00:47]} Rxc3 {[%emt 0:00:07]} 33. Qxc7 {[%emt 0:00:19]} Rxc7 {[%emt 0:00:01]} 34. Ke3 {[%emt 0:00:19]} Rb5 {[%emt 0:00:33]} 35. Kf4 {[%emt 0:00:24]} Rc4 {[%emt 0:00:11]} 36. Ke5 {[%emt 0:00:18]} Rbxb4 {[%emt 0:00:56]} 37. Ra2 {[%emt 0:00:12]} Rb1 {[%emt 0:00:29]} 38. Kd6 {[%emt 0:00:54]} Rf1 {[%emt 0:00:52]} 39. Ra8+ {[%emt 0:00:41]} Kh7 {[%emt 0:00:02]} 40. Re8 {[%emt 0:00:13]} Rf4 {[%emt 0:00:43]} 0-1

[Event "AUT-ch U16 Boys 2022"]
[Site "Sankt Veit an der Glan"]
[Date "2022.04.10"]
[Round "1"]
[White "Weixler, Moritz"]
[Black "Wendl, Philipp"]
[Result "0-1"]
[ECO "C25"]
[WhiteElo "1190"]
[BlackElo "2000"]
[Annotator "NA RC"]
[PlyCount "34"]
[EventDate "2022.04.11"]
[EventType "swiss"]
[EventCountry "AUT"]
[SourceTitle "playchess.com"]
[Source "ChessBase"]
[SourceQuality "1"]
[TimeControl "5400+30"]

1. e4 {[%emt 0:00:03]} e5 {[%emt 0:00:04]} 2. Nc3 {[%emt 0:00:05]} Nc6 {[%emt 0:00:20]} 3. Bc4 {[%emt 0:00:06]} Bc5 {[%emt 0:00:41]} 4. Qg4 {[%emt 0:00:17]} g6 {[%emt 0:20:35]} 5. Qf3 {[%emt 0:00:22]} Nf6 {[%emt 0:00:55]} 6. Nge2 {[%emt 0:00:10]} O-O {[%emt 0:05:25]} 7. d3 {[%emt 0:01:57]} Kg7 {[%emt 0:03:57]} 8. g4 {[%emt 0:19:13]} Nxg4 {[%emt 0:08:20]} 9. Qxg4 {[%emt 0:00:12]} d5 {[%emt 0:00:06]} 10. Qg3 {[%emt 0:01:37]} dxc4 {[%emt 0:00:49]} 11. dxc4 {[%emt 0:00:09]} f5 {[%emt 0:10:14]} 12. f4 {[%emt 0:04:17]} Nb4 {[%emt 0:03:24]} 13. Kf1 {[%emt 0:03:38]} Nxc2 {[%emt 0:00:29]} 14. Rb1 {[%emt 0:00:04]} fxe4 {[%emt 0:00:39]} 15. Nxe4 {[%emt 0:05:02]} Qd1+ {[%emt 0:00:50]} 16. Kg2 {[%emt 0:00:12]} Qxe2+ {[%emt 0:00:06]} 17. Nf2 {[%emt 0:00:21]} Bxf2 {[%emt 0:00:23]} 0-1

[Event "AUT-ch U16 Boys 2022"]
[Site "Sankt Veit an der Glan"]
[Date "2022.04.10"]
[Round "2"]
[White "Marakovits, Nico"]
[Black "Miazhynski, Michael"]
[Result "1-0"]
[ECO "A58"]
[WhiteElo "2249"]
[BlackElo "2047"]
[Annotator "RC"]
[PlyCount "83"]
[EventDate "2022.04.11"]
[EventType "swiss"]
[EventCountry "AUT"]
[SourceTitle "playchess.com"]
[Source "ChessBase"]
[SourceQuality "1"]
[TimeControl "5400+30"]

1. d4 {[%emt 0:00:06]} Nf6 {[%emt 0:00:05]} 2. c4 {[%emt 0:00:13]} c5 {[%emt 0:00:06]} 3. d5 {[%emt 0:00:07]} b5 {[%emt 0:00:10]} 4. cxb5 {[%emt 0:00:05]} a6 {[%emt 0:00:05]} 5. bxa6 {[%emt 0:00:06]} g6 {[%emt 0:00:14]} 6. Nc3 {[%emt 0:00:08]} Bg7 {[%emt 0:00:13]} 7. e4 {[%emt 0:01:24]} O-O {[%emt 0:00:10]} 8. a7 {[%emt 0:02:14]} Rxa7 {[%emt 0:03:14]} 9. Nf3 {[%emt 0:00:36]} d6 {[%emt 0:01:52]} 10. Bd2 {[%emt 0:05:08]} Ba6 {[%emt 0:04:12]} 11. a4 {[%emt 0:09:46]} Bxf1 {[%emt 0:06:18]} 12. Kxf1 {[%emt 0:00:50]} Rb7 {[%emt 0:08:38]} 13. Qc2 {[%emt 0:03:03]} Na6 {[%emt 0:01:05]} 14. Nb5 {[%emt 0:02:18]} Qd7 {[%emt 0:07:31]} 15. h3 {[%emt 0:07:41]} Rfb8 {[%emt 0:05:27]} 16. Bc3 {[%emt 0:04:08]} Nc7 {[%emt 0:14:01]} 17. Nxc7 {[%emt 0:01:39]} Qxc7 {[%emt 0:00:04]} 18. Nd2 {[%emt 0:02:07]} e6 {[%emt 0:07:45]} 19. Qd3 {[%emt 0:06:40]} exd5 {[%emt 0:09:22]} 20. exd5 {[%emt 0:00:08]} Nd7 {[%emt 0:01:32]} 21. Nc4 {[%emt 0:06:09]} Ne5 {[%emt 0:07:58]} 22. Nxe5 {[%emt 0:01:02]} dxe5 {[%emt 0:01:19]} 23. Qc4 {[%emt 0:02:45]} Qd6 {[%emt 0:01:13]} 24. g3 {[%emt 0:03:07]} f5 {[%emt 0:01:42]} 25. Kg2 {[%emt 0:02:24]} e4 {[%emt 0:00:19]} 26. Rhe1 {[%emt 0:02:29]} Rd8 {[%emt 0:05:50]} 27. Rad1 {[%emt 0:01:40]} Ra8 {[%emt 0:00:32]} 28. Ra1 {[%emt 0:02:16]} h6 {[%emt 0:01:09]} 29. Re2 {[%emt 0:02:37]} Kh7 {[%emt 0:00:34]} 30. Ra3 {[%emt 0:05:47]} Rd8 {[%emt 0:03:46]} 31. Rd2 {[%emt 0:01:11]} Rdb8 {[%emt 0:00:06]} 32. a5 {[%emt 0:01:38]} Ra8 {[%emt 0:00:31]} 33. a6 {[%emt 0:03:10]} Rba7 {[%emt 0:00:35]} 34. Bxg7 {[%emt 0:04:04]} Kxg7 {[%emt 0:00:05]} 35. Ra5 {[%emt 0:00:55]} Rxa6 {[%emt 0:01:12]} 36. Rxc5 {[%emt 0:00:00]} R8a7 {[%emt 0:00:32]} 37. Qc3+ {[%emt 0:00:15]} Kf7 {[%emt 0:04:52]} 38. Rc6 {[%emt 0:03:18]} Qe7 {[%emt 0:01:17]} 39. Qc4 {[%emt 0:01:38]} Rxc6 {[%emt 0:01:53]} 40. dxc6+ {[%emt 0:00:05]} Qe6 {[%emt 0:00:05]} 41. Qxe6+ {[%emt 0:02:55]} Kxe6 {[%emt 0:00:03]} 42. b4 {[%emt 0:00:06]} 1-0